Cogmind - Beta 16.1 @@@ ROGUE MODE // 2026.04.19 @ 02:16:06 Player: mephiles96 Result: Destroyed by D-53 Grenadier with Mini Grenade Launcher Performance ------------- Evolutions (1) 500 Regions Visited (4) 800 Robots Destroyed (77) 385 Value Destroyed (1628) 1628 Prototype IDs (2) 40 Alien Tech Used (0) 0 Bonus (16) 16 TOTAL SCORE: 3369 Bonus ------- High Alert Combat Kills 16 Cogmind --------- Core Integrity 0/400 Matter 260/300 Energy 84/100 System Corruption 0% Temperature Cool (0) Movement Rolling (140) Ox4 Location -9/Mines Parts ------- > --- POWER (1) -------- (None) > --- PROPULSION (3) --- Wheel > --- UTILITY (3) ------ High-capacity Storage Unit Structural Scanner > --- WEAPON (2) ------- (None) > --- INVENTORY (20) --- Light Ion Engine Light Treads Flight Unit Flight Unit VTOL Module VTOL Module Improved Flight Unit Faulty Improved Flight Unit Improved Flight Unit Improved Flight Unit Improved Flight Unit Small Storage Unit ECM Suite Medium Armor Plating Hacking Suite Hacking Suite Light Assault Rifle Grenade Launcher Heavy Hammer Peak State ------------ > --- POWER ------------ Light Ion Engine > --- PROPULSION ------- Light Treads Light Treads Improved Treads > --- UTILITY ---------- High-capacity Storage Unit Structural Scanner Medium Armor Plating > --- WEAPON ----------- Improved Assault Rifle Improved Assault Rifle > --- INVENTORY -------- Light Ion Engine Light Treads Wheel Flight Unit Flight Unit Flight Unit VTOL Module Improved Flight Unit Improved Flight Unit Improved Flight Unit Small Storage Unit ECM Suite Light Armor Plating Hacking Suite Hacking Suite Light Assault Rifle Grenade Launcher Heavy Hammer [Rating: 18] Favorites ----------- Power Ion Engine Engine Ion Engine Propulsion Light Treads Treads Light Treads Wheel Wheel Utility Seismic Detector Device Seismic Detector Storage Large Storage Unit Protection Medium Armor Plating Weapon Autogun Ballistic Gun Autogun Launcher Grenade Launcher Build | -11 -10 -10 -9 -9 ------- Run | Yrd Mat Min Mat Min Slots Evolved 2 | . . . 2 . Power . | . . . . . Propulsion 1 | . . . 1 . Utility 1 | . . . 1 . Weapon . | . . . . . Parts Attached 33 | 7 7 . 18 1 Power 3 | 1 . . 2 . Engine 3 | 1 . . 2 . Core . | . . . . . Reactor . | . . . . . Propulsion 10 | 2 . . 8 . Treads 9 | 2 . . 7 . Leg . | . . . . . Wheel 1 | . . . 1 . Hover . | . . . . . Flight . | . . . . . Utility 11 | 2 2 . 6 1 Device 4 | 1 . . 2 1 Storage 3 | 1 2 . . . Processor . | . . . . . Hackware . | . . . . . Protection 4 | . . . 4 . Artifact . | . . . . . Weapon 9 | 2 5 . 2 . Energy Gun . | . . . . . Energy Cannon . | . . . . . Ballistic Gun 8 | 2 4 . 2 . Ballistic Cannon . | . . . . . Launcher 1 | . 1 . . . Special Weapon . | . . . . . Impact Weapon . | . . . . . Slashing Weapon . | . . . . . Piercing Weapon . | . . . . . Special Melee Weapon . | . . . . . Unidentified Prototypes 1 | . . . 1 . Parts Lost 8 | . . . 1 7 Power 2 | . . . 1 1 Propulsion 3 | . . . . 3 Utility 1 | . . . . 1 Weapon 2 | . . . . 2 Highest Loss Streak 7 | . . . 1 7 To Critical Strikes . | . . . . . Average Backups 13 | 4 10 15 16 20 Power 1 | . 1 2 1 1 Propulsion 5 | 2 3 4 6 11 Utility 3 | . 2 5 4 5 Weapon 3 | . 3 4 3 3 Tool/Special . | . . . . . Unused Backups 20 | . 5 . 1 14 Power 3 | . 2 . . 1 Propulsion 11 | . 1 . 1 9 Utility 3 | . . . . 3 Weapon 3 | . 2 . . 1 Tool/Special . | . . . . . Average Slot Usage (%) 99 | . 100 100 99 98 Engine 12 | . 14 14 10 10 Treads 30 | . 28 28 32 32 Device 12 | . 14 14 11 11 Storage 12 | . 14 14 11 11 Protection 5 | . . . 9 10 Ballistic Gun 24 | . 27 28 22 20 Peak Build Rating 18 | 7 11 11 18 18 Average Rating 12 | 5 9 11 15 17 On Entrance 9 | . 7 11 11 18 Avg Prop Armor Cover (%) 17 | . . . 17 . Naked Turns . | . . . . . Heaviest Build 57 | 14 52 32 57 57 Greatest Support 63 | 40 40 40 63 63 Greatest Overweight (x) 4 | 4 1 . 3 . Average Overweight (x) . | 1 . . . . Largest Inventory Capacity 20 | 8 20 15 20 20 Average Capacity 15 | 7 14 15 17 20 Most Carried 20 | 6 15 15 20 20 Average Carried 13 | 4 10 15 16 19 Final Capacity 20 | 8 15 15 20 20 Final Carried 20 | 5 15 15 20 19 Class Distribution -------------------- 79% | Mutant 20% | Scavenger-Mutant Dominant Class ---------------- Mutant | -10/Materials Mutant | -10/Mines Mutant | -9/Materials Mutant | -9/Mines Resources | -11 -10 -10 -9 -9 ----------- Run | Yrd Mat Min Mat Min Matter Collected 1977 | 366 495 56 983 77 Remotely . | . . . . . Salvage Created 2484 | 157 621 . 1482 224 Parts 182 | 5 60 . 101 16 Haulers Intercepted 5 | . 1 . 4 . Recyclers Shooed 4 | . . . 4 . Parts Field Recycled . | . . . . . Retrieved Matter . | . . . . . Parts Self-Destructed . | . . . . . Prevented . | . . . . . Parts Restored . | . . . . . Kills | -11 -10 -10 -9 -9 ------- Run | Yrd Mat Min Mat Min Combat Hostiles Destroyed 40 | . 14 . 23 3 Guns 36 | . 10 . 23 3 AOE 4 | . 4 . . . Classes Destroyed 12 | 2 7 . 2 1 Worker 8 | . 1 . 6 1 Builder 6 | . 3 . 2 1 Tunneler 7 | 4 . . 1 2 Hauler 5 | . 1 . 4 . Recycler 3 | 1 1 . . 1 Operator 3 | . 2 . 1 . Watcher 5 | . 2 . 3 . Swarmer 6 | . 6 . . . Grunt 24 | . 8 . 14 2 Brawler 1 | . . . 1 . Duelist 1 | . . . . 1 Sentry 8 | . . . 8 . Best Kill Streak 7 | 2 3 . 5 7 Combat Bots Only 4 | . 3 . 4 3 Max Kills in Single Turn 3 | 1 3 . 1 1 Gunslinging . | . . . . . Exploded 2 | . 2 . . . Melee . | . . . . . Uniques/NPCs Destroyed . | . . . . . Combat | -11 -10 -10 -9 -9 -------- Run | Yrd Mat Min Mat Min Hostile Shots Fired 142 | . 26 . 84 32 Missed 35 | . 10 . 21 4 Hits 107 | . 16 . 63 28 Melee 3 | . . . 3 . Projectile 104 | . 16 . 60 28 AOE 20 | . . . . 20 Critical Strikes 3 | . 1 . 2 . Damage Taken 1929 | . 180 . 856 893 Core 404 | . . . 172 232 Absorbed by Shields . | . . . . . Regen/Repaired (Parts) 4 | . . . 4 . Core Remaining (%) 100 | 100 . 100 . . Volleys Fired 202 | 24 60 . 105 13 Largest 2 | 2 2 . 2 2 Hottest 53 | 40 53 . 46 53 Shots Fired 401 | 48 118 . 210 25 Gun 395 | 48 115 . 210 22 Cannon . | . . . . . Launcher 6 | . 3 . . 3 Special . | . . . . . Kinetic 395 | 48 115 . 210 22 Thermal . | . . . . . Explosive 6 | . 3 . . 3 Electromagnetic . | . . . . . Robot Hit Streak 33 | 6 11 . 33 5 Robot Miss Streak 6 | 3 4 . 6 3 Penetration Max . | . . . . . Secondary Targets . | . . . . . Shots Hit Robots 255 | 32 68 . 144 11 Core Hits 114 | 7 31 . 61 15 Critical Kills 1 | 1 . . . . Critical Parts Destroyed 2 | . . . 2 . Critical Strikes 3 | 1 . . 2 . Destroy 3 | 1 . . 2 . Melee Attacks . | . . . . . Impact . | . . . . . Slashing . | . . . . . Piercing . | . . . . . Sneak Attacks . | . . . . . Combat Hostiles . | . . . . . Follow-up Attacks . | . . . . . Damage Inflicted 4154 | 312 1205 . 2231 406 Guns 3768 | 312 1036 . 2212 208 Cannons . | . . . . . Explosions 360 | . 168 . . 192 Melee . | . . . . . Ramming 26 | . 1 . 19 6 Kinetic 3768 | 312 1036 . 2212 208 Thermal . | . . . . . Explosive 360 | . 168 . . 192 Electromagnetic . | . . . . . Impact . | . . . . . Slashing . | . . . . . Piercing . | . . . . . Highest Corruption 1 | . 1 1 . . Average Corruption 1 | . 1 1 . . Corruption Purged . | . . . . . Corruption Blocked . | . . . . . Effects 6 | . 6 . . . Message Errors 1 | . 1 . . . Matter Fused 2 | . 2 . . . Parts Fused 1 | . 1 . . . Data Loss (major) 1 | . 1 . . . Weapon Failures 1 | . 1 . . . Overload Shots . | . . . . . Overflow Damage 16 | . . . . 16 Projectiles . | . . . . . Explosions 16 | . . . . 16 Melee . | . . . . . Knockbacks . | . . . . . Impact . | . . . . . Kinetic . | . . . . . Secondary . | . . . . . Self-Inflicted Damage . | . . . . . Shots . | . . . . . Rammed 5 | . 1 . 3 1 Targets Rammed 6 | . 2 . 3 1 Kicked . | . . . . . Crushed 1 | . 1 . . . Highest Temperature 34 | . 24 . 34 6 Average Temperature 7 | . 6 . 7 3 Received Heat Transfer 480 | . 93 . 333 54 Siege Activations . | . . . . . Martial Activations . | . . . . . Shielding Activations . | . . . . . Robots Disrupted . | . . . . . Combat Hostiles . | . . . . . Robots Corrupted . | . . . . . Combat Hostiles . | . . . . . Parts Fried . | . . . . . Impact Corruptions . | . . . . . Robots Melted . | . . . . . Combat Hostiles . | . . . . . Parts Melted . | . . . . . Heat Transferred . | . . . . . Parts Sabotaged . | . . . . . Parts Stolen . | . . . . . Parts Stripped . | . . . . . Power Chain Reactions . | . . . . . Alert | -11 -10 -10 -9 -9 ------- Run | Yrd Mat Min Mat Min Maximum Alert Level 2 | . . . 2 1 Low Security (%) 83 | 100 100 100 62 94 Level 1 13 | . . . 31 5 Level 2 2 | . . . 5 . Level 3 . | . . . . . Level 4 . | . . . . . Level 5 . | . . . . . High Security . | . . . . . Max Security . | . . . . . Peak Influence 439 | 5 154 27 439 202 Initial 167 | . . 27 . 167 Average 115 | . 63 8 184 164 Influence Increases 1502 | 25 461 . 900 116 Destroy 0b10 Robot/C 800 | . 280 . 460 60 Destroy 0b10 Robot/NC 185 | 25 50 . 85 25 Destroy Leader 210 | . 56 . 144 10 Successful Hack 50 | . 26 . 24 . Disable Machine 60 | . . . 60 . Destroy Structure 62 | . 34 . 7 21 Partial Spotted 15 | . . . 15 . Lose Combat Pursuer 120 | . 15 . 105 . Influence Decreases 1409 | 25 390 71 470 453 Entered New Map 307 | . . 44 . 263 Time Decay 1022 | 25 390 27 460 120 Lost Part 80 | . . . 10 70 Squads Dispatched 5 | . 2 . 3 . Investigation 2 | . . . 2 . Extermination . | . . . . . Reinforcement 3 | . 2 . 1 . Assault . | . . . . . Garrison . | . . . . . Intercept . | . . . . . Searches Triggered . | . . . . . Construction Impeded . | . . . . . Haulers Reinforced . | . . . . . Active Scanning Responses . | . . . . . Cargo Convoy Interrupts . | . . . . . Stealth | -11 -10 -10 -9 -9 --------- Run | Yrd Mat Min Mat Min Distress Signals 4 | . . . 4 . Communications Jammed . | . . . . . Distress Signals . | . . . . . Times Spotted 74 | . 27 . 41 6 Peak Tracking Total 5 | . 3 . 5 3 Tactical Retreats 5 | . 1 . 4 . Traps | -11 -10 -10 -9 -9 ------- Run | Yrd Mat Min Mat Min Traps Triggered 2 | . 1 . 1 . Indirectly . | . . . . . Trap Hack Attempts . | . . . . . Triggered . | . . . . . Disarmed 6 | . . . 6 . Reprogrammed . | . . . . . Reused . | . . . . . Traps Extracted . | . . . . . Installed . | . . . . . Triggered . | . . . . . Machines | -11 -10 -10 -9 -9 ---------- Run | Yrd Mat Min Mat Min Machines Disabled 4 | . . . 4 . Max in Single Turn 1 | . . . 1 . Machines Repaired . | . . . . . Machines Dismantled . | . . . . . Machines Sabotaged . | . . . . . Overloaded Fab Kills . | . . . . . Hacking | -11 -10 -10 -9 -9 --------- Run | Yrd Mat Min Mat Min Machines Accessed 13 | . 5 1 7 . Terminals 10 | . 5 1 4 . Fabricators . | . . . . . Repair Stations 2 | . . . 2 . Recycling Units . | . . . . . Scanalyzers 1 | . . . 1 . Garrison Access . | . . . . . Total Hacks 31 | . 10 3 18 . Successful 16 | . 6 . 10 . Failed 15 | . 4 3 8 . Catastrophic 3 | . 1 1 1 . Database Lockouts . | . . . . . Manual 16 | . 8 3 5 . Terminals 20 | . 10 3 7 . Fabricators . | . . . . . Repair Stations 8 | . . . 8 . Recycling Units . | . . . . . Scanalyzers 3 | . . . 3 . Garrison Access . | . . . . . Terminal Hacks 9 | . 5 . 4 . Record 1 | . 1 . . . Robot Analysis 1 | . 1 . . . Level Access Points 1 | . . . 1 . Branch Access Points 2 | . 1 . 1 . Recycling Unit Index 1 | . 1 . . . Disarm Traps 1 | . . . 1 . Hauler Manifests 2 | . 1 . 1 . Fabricator Hacks . | . . . . . Repair Station Hacks 4 | . . . 4 . Scan Component 2 | . . . 2 . Repair 2 | . . . 2 . Recycling Unit Hacks . | . . . . . Scanalyzer 2 | . . . 2 . Insert Component 1 | . . . 1 . Analyze 1 | . . . 1 . Garrison Access Hacks . | . . . . . Unauthorized Hacks 1 | . 1 . . . Terminals 1 | . 1 . . . Operators 1 | . 1 . . . Fabricators . | . . . . . Repair Stations . | . . . . . Recycling Units . | . . . . . Scanalyzers . | . . . . . Garrison Access . | . . . . . Data Cores Recovered . | . . . . . Used . | . . . . . Hacking Detections 9 | . 4 1 4 . Full Trace Events 1 | . . . 1 . Feedback Events . | . . . . . Feedback Blocked . | . . . . . Robot Schematics Acquired . | . . . . . Robots Built . | . . . . . Authchips . | . . . . . Time . | . . . . . Total Robot Build Rating . | . . . . . Part Schematics Acquired 1 | . . . 1 . Parts Built . | . . . . . Authchips . | . . . . . Time . | . . . . . Total Part Build Rating . | . . . . . Part Studies Acquired . | . . . . . Parts Repaired 2 | . . . 2 . Time 76 | . . . 76 . Parts Recycled . | . . . . . Recycled Matter . | . . . . . Retrieved Matter . | . . . . . Retrieved Components . | . . . . . Parts Scanalyzed 1 | . . . 1 . Part Schematics Acquired 1 | . . . 1 . Parts Damaged . | . . . . . Bothacking | -11 -10 -10 -9 -9 ------------ Run | Yrd Mat Min Mat Min Used RIF Installer . | . . . . . Robots Hacked . | . . . . . Non-combat . | . . . . . Combat . | . . . . . Robot Hacks Applied . | . . . . . Relay Couplers Released . | . . . . . Fabnet Peak Effective % . | . . . . . Robots Rewired . | . . . . . Allies Hacked . | . . . . . Hacks Repelled . | . . . . . Allies | -11 -10 -10 -9 -9 -------- Run | Yrd Mat Min Mat Min Total Allies . | . . . . . Largest Group . | . . . . . Highest-Rated Group . | . . . . . Highest-Rated Ally . | . . . . . Total Orders . | . . . . . Ally Attacks . | . . . . . Total Damage . | . . . . . Kills . | . . . . . Allies Corrupted . | . . . . . Allies Melted . | . . . . . Intel | -11 -10 -10 -9 -9 ------- Run | Yrd Mat Min Mat Min Active Infowar (turns) 3802 | 192 1542 120 1690 258 Structural 1947 | . . . 1689 258 Seismic 2012 | 192 1542 120 158 . Robot Analysis Total 1 | . 1 . . . Derelict Logs Recovered . | . . . . . Drone Launches . | . . . . . Drone Recoveries . | . . . . . Exploration | -11 -10 -10 -9 -9 ------------- Run | Yrd Mat Min Mat Min Turns Passed 3918 | 308 1542 120 1690 258 Spaces Moved 1729 | 116 670 76 740 127 Core 68 | 68 . . . . Treads 1602 | 48 670 76 681 127 Legs . | . . . . . Wheels 59 | . . . 59 . Hover . | . . . . . Flight . | . . . . . Fastest Speed 50 | 50 160 160 125 160 Average Speed 168 | 194 177 160 158 160 Slowest Speed 250 | 250 240 160 240 160 Overloaded Moves . | . . . . . Propulsion Burnouts . | . . . . . Robots Hopped . | . . . . . Potential Cave-ins . | . . . . . Cave-ins Triggered . | . . . . . Exploration Rate (%) 41 | 5 89 19 69 23 Regions Visited 4 Branch Regions 2 Pre-discovered Areas . | . . . . . Known Exits Taken 2 | . 1 . 1 . Unknown Exits Taken 2 | 1 . 1 . . Scrap Searched 1 | . . 1 . . Spaces Dug 8 | . 8 . . . Terrain Destroyed 52 | . 29 . . 23 Melee . | . . . . . Projectile . | . . . . . AOE 52 | . 29 . . 23 Terrain Rammed . | . . . . . Walls Destroyed . | . . . . . Machines Disabled . | . . . . . Actions | -11 -10 -10 -9 -9 --------- Run | Yrd Mat Min Mat Min Total 2390 | 153 927 75 1080 155 Wait 344 | . 155 . 182 7 Move 1725 | 115 669 75 739 127 Hop . | . . . . . Pick Up 43 | 7 22 . 14 . Fast Attach 10 | 5 1 . 4 . Attach 5 | 2 . . 2 1 Detach 1 | . . . 1 . Swap 27 | . 9 . 13 5 Drop 27 | . 9 . 17 1 Fire 202 | 24 60 . 105 13 Melee . | . . . . . Ram . | . . . . . Kick . | . . . . . Crush 6 | . 2 . 3 1 Escape Stasis . | . . . . . Rewire . | . . . . . Trap . | . . . . . Miscellaneous . | . . . . . Route ------- -11/Scrapyard -10/Materials (discovered 6 exits: *Mat x3 / *Min x2 / [*Sub]) -10/Mines -9/Materials (discovered 4 exits: *Mat x3 / *Min) -9/Mines (discovered 1 exit: *Mat) History --------- Turn | Location | Event 27 | -11/Scrapyard | Discovered new exit (range 15) 309 | -11/Scrapyard | Entered Materials 310 | -10/Materials | Build established: Mutant 509 | -10/Materials | Discovered new exit (range 4) 949 | -10/Materials | Discovered new exit (range 7) 1329 | -10/Materials | Discovered new exit (range 12) 1452 | -10/Materials | Discovered new exit (range 13) 1500 | -10/Materials | Discovered new exit (range 9) 1627 | -10/Materials | Identified exit to Mines 1851 | -10/Materials | Entered Mines 1862 | -10/Mines | Met a Derelict bent on vengeance 1870 | -10/Mines | Received a Rocket Launcher from a helpful Derelict 1954 | -10/Mines | Discovered new exit (range 6) 1971 | -10/Mines | Entered Materials 1971 | -9/Materials | Evolved 2 slots: Propulsion x1, Utility x1 2420 | -9/Materials | Build established: Scavenger-Mutant 2582 | -9/Materials | Identified exit to Materials 2872 | -9/Materials | Repaired Hacking Suite 3227 | -9/Materials | Build established: Mutant 3310 | -9/Materials | Identified exit to Mines 3449 | -9/Materials | Repaired Hacking Suite 3661 | -9/Materials | Entered Mines 3721 | -9/Mines | Discovered exit to Materials (range 12) 3752 | -9/Mines | Core integrity fell below 50% 3875 | -9/Mines | Assembled infested the area 3916 | -9/Mines | Core integrity fell below 20% 3919 | -9/Mines | Destroyed by D-53 Grenadier with Mini Grenade Launcher Last Messages --------------- 03900_ D-53 Grenadier unfolds itself. 03900_ Lgt. Ion Engine destroyed. 03900_ Destroyed Imp. Terrain Scanner. 03900_ Destroyed Mining Laser. 03900_ T-07 Excavator destroyed. 03907_ Med. Armor Plating destroyed. 03909_ Lgt. Treads destroyed. 03910_ The unstable cave ceiling collapses. 03910_ K-01 Serf collects debris. 03912_ U-05 Engineer lays Concrete. 03912_ Destroyed Shock Absorption System. 03914_ U-05 Engineer lays Concrete. 03914_ K-01 Serf collects debris. 03915_ U-05 Engineer lays Concrete. 03917_ The unstable cave ceiling collapses. 03917_ Imp. Treads destroyed. 03917_ Imp. Assault Rifle destroyed. 03918_ U-05 Engineer lays Concrete. 03919_ U-05 Engineer builds a Wall. 03919_ K-01 Serf collects debris. Map ----- +----------------------------------------------------+ | ?#### ###??### """ #####?????????????????????? | | ??### ##????## * ###???????????????????????? | | ???## ###???## ! %=##???????????????????????? | | ???## ###??### !*=##???????????????????????? | | ???## ##??### !%=##???????????????????????? | | ???### ###?#### ###???????????????????????? | | ???### ########## ###???????????????????????? | | ???### ####?###### ###???????????????????????? | | ???## ####### # ###???????????????????????? | | ???## ######### ###???????????????????????? | | ???## ## ###???????????????????????? | | ???## ## #####t ####### ??????????????????? | | ???## ### #####=r####### ??????????????????? | | ???### ######???### ????????????? | | ???##########????###u= #######??????????????????? | | ????######???????## k% #######??????????????????? | | ?????????????????## dd ##???????????????????????? | | ?????????????????## ##???????????????????????? | | ????????????????### #####????????????????????? | | ???????????????##### ######???????????????????? | | ???????????????### ####??????????????????? | | ???????????????## ####?????????????????? | | ???????????????## ###?????????????????? | | ???????????????### ##?????????????????? | | ???????????????### ##?????????????????? | | ???????????????## @ ###????????????????? | | ???????????????### ####???????????????? | | ???????????????#### ##############????? | | ????????????????### ############ | | ?????????????????##### | | ?????????????????########## | | ????????????????????####### ######### ?? | | ?????????????????????????## ###########????? | | ?????????????????????????### #####????????????? | | ?????????????????????????##########?????????????? | | ??????????????????????????#######???????????????? | | ????????????????????????????????????????????????? | | | | | | | | | | | | | | | | | | | | | | | | | | | +----------------------------------------------------+ Best States ------------- Heat Dissipation 28 Energy Generation 10 Energy Capacity 250 Matter Stores 300 Matter Capacity 300 Sight Range 16 Terrain Scan Density 10 Armor Coverage 225 Evasion (%) 40 Recoil Reduction 3 Item Schematics ----------------- Imp. Flight Unit | -9/Materials | Scanalyzed Robot Schematics ------------------ None Fabricated ------------ Nothing Repaired ---------- Hacking Suite | 80% | -9/Materials Hacking Suite | 80% | -9/Materials Studied --------- None Alien Tech Used ----------------- None Achievements -------------- None Challenges ------------ None Game ------ Seed ClaymoresBackupConstruct Manual? 0 Play Time 00:27:10 Cumulative 52.0 hours Start 2026.04.19 @ 01:50:36 End 2026.04.19 @ 02:16:06 Sessions 1 Manual Loads 0 Difficulty Rogue Special Mode None Game No. 64 Rogue 64 Adventurer 0 Explorer 0 Win Type - Total 0 Types 0/0/0/0/0/0/0/0/0/0 Lore% 26 Gallery% 34 Achievement% 28 Wizard Run 0 Options --------- Layout 2 ASCII 0 Keyboard 0 Movement Numpad Keybinds 1 Fullscreen 1 Font 24/Smallcaps Map View 50x44 Zoom Use 0% Tactical HUD 1 Map Filters NONE Filters NONE Steam 1 RUN: 0318447e-78b1-4598-a97e-8656b3e8ae93